Department Family,Entity,Date,Expense Type,Expense Area,Supplier,Transaction Number,Amount,Description
NS&I,NS&I,25/04/2012,ATOS Contract Costs,Partnerships & Contracts,Atos IT Services UK Ltd,244577,"-5,442,845.22",Unitary Fee
NS&I,NS&I,04/04/2012,ATOS Project Costs,Customer Product Management,Atos IT Services UK Ltd,244657,"-1,800,000.00",EASA and INVAC Costs to date Mar12
NS&I,NS&I,18/04/2012,Post Office Contract Costs,Distribution Relationship Development,Post Office Ltd,244818,"-1,000,000.00",Network Access (Fixed)
NS&I,NS&I,04/04/2012,ATOS Contract Costs,Partnerships & Contracts,Atos IT Services UK Ltd,244542,"-940,533.89",Fixed Price Programme Payment - Mar12
NS&I,NS&I,04/04/2012,ATOS Contract Costs,Partnerships & Contracts,Atos IT Services UK Ltd,244583,"-740,186.00",Growth Fixed Fee 
NS&I,NS&I,04/04/2012,ATOS Project Costs,Customer Product Management,Atos IT Services UK Ltd,244506,"-601,369.00",Term Product Functional Feb12
NS&I,NS&I,04/04/2012,Business to business - ATOS Costs,Leveraging,Atos IT Services UK Ltd,244630,"-570,356.00",Business to Business
NS&I,NS&I,04/04/2012,ATOS Maintenance and Running costs,Telephony Internet,Atos IT Services UK Ltd,244508,"-473,872.00",PB Authentication Running Costs
NS&I,NS&I,04/04/2012,ATOS Contract Costs,Partnerships & Contracts,Atos IT Services UK Ltd,244578,"-470,250.00",Growth Fixed Fee
NS&I,NS&I,04/04/2012,ATOS Project Costs,Telephony Internet,Atos IT Services UK Ltd,244509,"-398,815.00",IP Telephony Rollout Feb12
NS&I,NS&I,04/04/2012,Business to business - ATOS Costs,Leveraging,Atos IT Services UK Ltd,244540,"-362,433.00",Business to Business
NS&I,NS&I,04/04/2012,Business to business - ATOS Costs,Leveraging,Atos IT Services UK Ltd,244624,"-346,543.00",Business to Business
NS&I,NS&I,04/04/2012,ATOS Maintenance and Running costs,Partnerships & Contracts,Atos IT Services UK Ltd,244502,"-209,820.00",EOI Operations - Feb12
NS&I,NS&I,04/04/2012,ATOS Project Costs,Customer Product Management,Atos IT Services UK Ltd,244521,"-209,341.00",Term Products Trans Liability Feb12
NS&I,NS&I,25/04/2012,Professional Fees (IT and Security),Telephony Internet,EMC Computer Systems (uk) LTD,244898,"-204,000.00",RSA Contract validity from 01/04/11 to 31/03/14
NS&I,NS&I,04/04/2012,ATOS Project Costs,Customer Product Management,Atos IT Services UK Ltd,244597,"-178,541.00",TV2 Functionality Drop
NS&I,NS&I,18/04/2012,ATOS Project Costs,IS Assurance,Atos IT Services UK Ltd,244778,"-175,612.00",DCI Capacity Management Nov11 - Feb12
NS&I,NS&I,25/04/2012,Post Office Contract Costs,Distribution Relationship Development,Post Office Ltd,245011,"-173,422.13",NS&I Cost Recovery Income 3005091
NS&I,NS&I,04/04/2012,ATOS Project Costs,IS Assurance,Atos IT Services UK Ltd,244543,"-140,935.00",DCI - GSI Tactical Oct 11 - Feb12
NS&I,NS&I,19/04/2012,Product Account Bank Charges,Finance,Government Banking Service,823525,"-136,493.81",RBSG Quarterly Charges Mar 2012
NS&I,NS&I,25/04/2012,Professional Fees,IS Assurance,PricewaterhouseCoopers LLP,244826,"-131,286.92",Professional Service
NS&I,NS&I,25/04/2012,ATOS Maintenance and Running costs,Telephony Internet,Atos IT Services UK Ltd,244771,"-117,615.00",Webspiders - March 2012
NS&I,NS&I,04/04/2012,Professional Fees (IT and Security),Telephony Internet,EMC Computer Systems (uk) LTD,244544,"-105,980.40",RSA Software
NS&I,NS&I,25/04/2012,Professional Fees (IT and Security),Telephony Internet,EMC Computer Systems (uk) LTD,244916,"-105,980.40",RSA AAH (Active Users)
NS&I,NS&I,25/04/2012,Professional  Services -Legal,Partnerships & Contracts,Field Fisher Waterhouse LLP,244469,"-100,874.78",Project Yoda
NS&I,NS&I,04/04/2012,Internal Audit - Fees,Finance Director's Office,KPMG LLP (UK),244525,"-96,191.74",Internal Audit Services Fieldwork 1-29 Feb12
NS&I,NS&I,04/04/2012,ATOS Maintenance and Running costs,Partnerships & Contracts,Atos IT Services UK Ltd,244720,"-87,948.00",Dormant Holdings
NS&I,NS&I,11/04/2012,Direct Marketing,Marketing Services,Royal Mail Group Ltd,244756,"-83,334.19",Royal Mail DM Charges
NS&I,NS&I,11/04/2012,Capex Suspense Account,Finance,Worktribe Ltd,244730,"-76,440.00",System purchase
NS&I,NS&I,11/04/2012,Professional Fees (Property and FM),Delivery Support & Assurance,Building Design Partnership Ltd,244755,"-75,211.20",NS&I Cowglen Masterplan
NS&I,NS&I,04/04/2012,ATOS Project Costs,IS Assurance,Atos IT Services UK Ltd,244622,"-74,222.00",Feasibility Study Charges Jan-Feb12
NS&I,NS&I,04/04/2012,ATOS Maintenance and Running costs,Telephony Internet,Atos IT Services UK Ltd,244452,"-74,149.00",Intelligent Env Charges Feb12
NS&I,NS&I,18/04/2012,ATOS Project Costs,IS Assurance,Atos IT Services UK Ltd,244647,"-65,280.00",Bank Account Verification Feb12
NS&I,NS&I,04/04/2012,Professional Fees (Business to Business),Leveraging,KPMG LLP (UK),244659,"-60,067.20",Business to Business
NS&I,NS&I,11/04/2012,Professional Fees (Property and FM),Delivery Support & Assurance,Building Design Partnership Ltd,244799,"-55,413.60",NS&I Blackpool new offices
NS&I,NS&I,25/04/2012,ATOS Maintenance and Running costs,Telephony Internet,Atos IT Services UK Ltd,244773,"-54,409.00",Rackspace & Neustar Jan-Mar12
NS&I,NS&I,04/04/2012,Advertising & Production,Marketing,OMD,244529,"-48,617.26",Classic FM Sponsorship Mar12
NS&I,NS&I,04/04/2012,Advertising & Production,Marketing,OMD,244548,"-48,617.26",Classic FM Sponsorship Feb12
NS&I,NS&I,04/04/2012,Advertising & Production,Marketing,OMD,244532,"-45,678.98",Advertising online
NS&I,NS&I,04/04/2012,Professional Fees (IT and Security),Telephony Internet,EMC Computer Systems (uk) LTD,244702,"-42,000.00",RSA - SWMAINT/COMMENTS
NS&I,NS&I,04/04/2012,Internal Audit - Fees,Finance Director's Office,KPMG LLP (UK),244526,"-38,222.34",Internal Audit Services-Fixed/Capped for 1-29 Feb
NS&I,NS&I,04/04/2012,Consultancy,Finance,Unit 4 Agresso Solutions UK Ltd,244636,"-36,780.00",Ledgers Project fee
NS&I,NS&I,04/04/2012,Advertising Agency Costs,Marketing,Chick Smith Trott,244685,"-36,000.00",NS&I Annual Retainer Fee April 11-Mar12
NS&I,NS&I,25/04/2012,Professional Fees (IT and Security),Telephony Internet,EMC Computer Systems (uk) LTD,244899,"-36,000.00",RSA  Action contract 1/4/11 to 31/3/14
NS&I,NS&I,04/04/2012,ATOS Project Costs,Programme,Atos IT Services UK Ltd,244618,"-34,931.00","RMADS - Nov/Dec 11, Jan/Feb 12"
NS&I,NS&I,04/04/2012,ATOS Project Costs,Delivery Support & Assurance,Atos IT Services UK Ltd,244507,"-32,790.00",Complaints Management Stage 4 Jan-Feb12
NS&I,NS&I,18/04/2012,ATOS Maintenance and Running costs,IS Assurance,Atos IT Services UK Ltd,244781,"-32,454.00",BAU Corp MFD Charge Oct 11 - Mar12
NS&I,NS&I,04/04/2012,Professional Fees (Property and FM),Delivery Support & Assurance,Jones Lang Lasalle,244644,"-32,058.00",PAM Strategy - Glasgow/London
NS&I,NS&I,19/04/2012,Provision-legal cases,Finance,Treasury Solicitors Client Monies A/c,823581,"-32,000.00",National Savings & Investments
NS&I,NS&I,04/04/2012,ATOS Maintenance and Running costs,Telephony Internet,Atos IT Services UK Ltd,244613,"-31,897.10",Regular Billable Rev 
NS&I,NS&I,04/04/2012,ATOS Maintenance and Running costs,Telephony Internet,Atos IT Services UK Ltd,244608,"-29,308.00",Revised CIC Guides
NS&I,NS&I,25/04/2012,Professional Servcies Project Staff,Leveraging,Moorhouse Consortium,244945,"-29,040.00",Professional Services Mar12
NS&I,NS&I,25/04/2012,Professional Servcies Project Staff,Leveraging,Moorhouse Consortium,244947,"-28,704.00",Professional Services by Mar12
NS&I,NS&I,25/04/2012,Professional Servcies Project Staff,Leveraging,Moorhouse Consortium,244944,"-27,600.00",Professional Services by Feb12
NS&I,NS&I,11/04/2012,ATOS Project Costs,IS Assurance,Atos IT Services UK Ltd,244658,"-25,566.43",DWH BC-DR January & February 2012
NS&I,NS&I,04/04/2012,Professional Fees (Property and FM),Delivery Support & Assurance,Durham County Council - City of Durham,244655,"-25,095.60",Development Brief and AECOM desk top - Taylor Young
